fUSD/lending_fUSD_20250208
["ID","MTS","AMOUNT","RATE_DAILY","PERIOD"]
[352246634,1739016641577,-500.0,0.00010123,2]
[352246636,1739016641587,-1519.45,0.00010123,2]
[352246638,1739016641596,-500.0,0.00010123,2]
[352246640,1739016641606,-500.0,0.00010123,2]
[352246642,1739016641615,-501.86838503,0.00010123,2]
[352246644,1739016641625,-1474.09,0.00010123,2]
[352246646,1739016641639,-500.0,0.00010123,2]
[352246648,1739016641649,-500.0,0.00010123,2]
[352246650,1739016641658,-552.34,0.00010123,2]
[352246652,1739016641667,-1624.49,0.00010123,2]
[352246654,1739016641678,-852.74,0.00010123,2]
[352246656,1739016641687,-1118.02,0.00010123,2]
[352246657,1739016641696,-500.0,0.00010123,2]
[352246658,1739016641705,-502.95714697,0.00010123,2]
[352246659,1739016641716,-561.31,0.00010123,2]
[352246660,1739016641725,-500.0,0.00010123,2]
[352246661,1739016641734,-500.0,0.00010123,2]
[352246662,1739016641744,-500.0,0.00010123,2]
[352246663,1739016641753,-500.0,0.00010123,2]
[352246664,1739016641762,-500.0,0.00010123,2]
[352246665,1739016641772,-1284.92,0.00010123,2]
[352246666,1739016641781,-500.0,0.00010123,2]
[352246667,1739016641791,-619.81,0.00010123,2]
[352246668,1739016641801,-500.0,0.00010123,2]
[352246669,1739016641811,-500.0,0.00010123,2]
[352246670,1739016641820,-500.0,0.00010123,2]
[352246672,1739016641829,-500.0,0.00010123,2]
[352246674,1739016641839,-928.27,0.00010123,2]
[352246676,1739016641848,-1439.99,0.00010123,2]
[352246678,1739016641857,-500.0,0.00010123,2]
[352246680,1739016641866,-500.0,0.00010123,2]
[352246682,1739016641876,-500.0,0.00010123,2]
[352246684,1739016641885,-500.0,0.00010123,2]
[352246686,1739016641894,-745.06,0.00010123,2]
[352246688,1739016641903,-1217.49,0.00010123,2]
[352246690,1739016641912,-765.27,0.00010123,2]
[352246692,1739016641922,-590.8,0.00010123,2]
[352246694,1739016641930,-500.0,0.00010123,2]
[352246696,1739016641939,-473.36733648,0.00010123,2]
[352246698,1739016641948,-500.0,0.00010123,2]
[352246700,1739016641957,-508.28,0.00010123,2]
[352246702,1739016641966,-644.75,0.00010123,2]
[352246704,1739016641976,-500.0,0.00010123,2]
[352246706,1739016641985,-1307.72,0.00010123,2]
[352246708,1739016641995,-919.85,0.00010123,2]
[352246710,1739016642004,-500.0,0.00010123,2]
[352246712,1739016642013,-661.48,0.00010123,2]
[352246714,1739016642022,-812.62,0.00010123,2]
[352246715,1739016642031,-576.6,0.00010123,2]
[352246717,1739016642040,-500.0,0.00010123,2]
[352246719,1739016642050,-500.0,0.00010123,2]
[352246721,1739016642059,-3629.14,0.00010123,2]
[352246723,1739016642068,-848.22,0.00010123,2]
[352246725,1739016642078,-794.68,0.00010123,2]
[352246727,1739016642087,-890.34,0.00010123,2]
[352246730,1739016642104,-1094.34,0.00010123,2]
[352246732,1739016642113,-2156.61,0.00010123,2]
[352246734,1739016642124,-500.0,0.00010123,2]
[352246736,1739016642134,-592.9,0.00010123,2]
[352246738,1739016642143,-500.0,0.00010123,2]
[352246740,1739016642153,-500.0,0.00010123,2]
[352246742,1739016642162,-596.47987233,0.00010123,2]
[352246744,1739016642174,-1316.74,0.00010123,2]
[352246746,1739016642184,-500.0,0.00010123,2]
[352246749,1739016642193,-500.0,0.00010123,2]
[352246750,1739016642203,-2965.59,0.00010123,2]
[352246752,1739016642212,-500.0,0.00010123,2]
[352246755,1739016642222,-500.0,0.00010123,2]
[352246756,1739016642231,-172.22848009,0.00010123,2]
[352246758,1739016642240,-500.0,0.00010123,2]
[352246760,1739016642250,-2729.76,0.00010123,2]
[352246762,1739016642259,-1273.81,0.00010123,2]
[352246766,1739016642269,-152.31259877,0.00010123,2]
[352246769,1739016642279,-500.0,0.00010123,2]
[352246772,1739016642288,-500.0,0.00010123,2]
[352246774,1739016642297,-2243.36,0.00010123,2]
[352246776,1739016642306,-500.0,0.00010123,2]
[352246779,1739016642315,-500.0,0.00010123,2]
[352246781,1739016642328,-1994.8,0.00010123,2]
[352246783,1739016642338,-500.0,0.00010123,2]
[352246785,1739016642348,-3608.88,0.00010123,2]
[352246787,1739016642358,-500.0,0.00010123,2]
[352246789,1739016642367,-500.0,0.00010123,2]
[352246791,1739016642376,-530.22,0.00010123,2]
[352246793,1739016642385,-298.86554113,0.00010123,2]
[352246795,1739016642395,-500.0,0.00010123,2]
[352246797,1739016642404,-500.0,0.00010123,2]
[352246799,1739016642413,-902.09,0.00010123,2]
[352246801,1739016642423,-742.68,0.00010123,2]
[352246802,1739016642432,-500.0,0.00010123,2]
[352246804,1739016642441,-524.17,0.00010123,2]
[352246806,1739016642451,-500.0,0.00010123,2]
[352246808,1739016642460,-500.0,0.00010123,2]
[352246810,1739016642470,-500.0,0.00010123,2]
[352246813,1739016642479,-557.0,0.00010123,2]
[352246815,1739016642489,-500.0,0.00010123,2]
[352246817,1739016642499,-639.46548279,0.00010123,2]
[352246819,1739016642508,-500.0,0.00010123,2]
[352246821,1739016642518,-503.54578412,0.00010123,2]
[352246823,1739016642527,-1082.66,0.00010123,2]
[352246825,1739016642536,-500.0,0.00010123,2]
[352246827,1739016642545,-2180.53,0.00010123,2]
[352246829,1739016642555,-500.0,0.00010123,2]
[352246831,1739016642564,-500.0,0.00010123,2]
[352246832,1739016642573,-500.0,0.00010123,2]
[352246834,1739016642583,-670.71,0.00010123,2]
[352246836,1739016642592,-1715.72,0.00010123,2]
[352246839,1739016642603,-520.83,0.00010123,2]
[352246841,1739016642612,-3699.44,0.00010123,2]
[352246843,1739016642621,-500.0,0.00010123,2]
[352246845,1739016642633,-524.48,0.00010123,2]
[352246847,1739016642643,-555.25956207,0.00010123,2]
[352246849,1739016642653,-2751.18,0.00010123,2]
[352246851,1739016642662,-500.0,0.00010123,2]
[352246853,1739016642671,-500.0,0.00010123,2]
[352246855,1739016642680,-500.0,0.00010123,2]
[352246857,1739016642690,-1146.55,0.00010123,2]
[352246859,1739016642699,-592.79,0.00010123,2]
[352246860,1739016642710,-931.63,0.00010123,2]
[352246863,1739016642719,-1525.87,0.00010123,2]
[352246865,1739016642729,-2618.94,0.00010123,2]
[352246867,1739016642738,-669.42,0.00010123,2]
[352246869,1739016642748,-500.0,0.00010123,2]
[352246871,1739016642758,-905.09,0.00010123,2]
[352246873,1739016642767,-500.0,0.00010123,2]
[352246875,1739016642777,-500.0,0.00010123,2]
[352246877,1739016642786,-1202.49,0.00010124,2]
[352246879,1739016642795,-651.3,0.00010124,2]
[352246881,1739016642804,-500.0,0.00010124,2]
[352246883,1739016642814,-639.49298457,0.00010124,2]
[352246885,1739016642823,-556.5,0.00010124,2]
[352246887,1739016642832,-1262.24,0.00010124,2]
[352246889,1739016642841,-523.68,0.00010124,2]
[352246891,1739016642850,-645.85,0.00010124,2]
[352246893,1739016642859,-1255.57,0.00010124,2]
[352246895,1739016642868,-500.0,0.00010124,2]
[352246897,1739016642877,-1271.04,0.00010124,2]
[352246899,1739016642887,-2817.48,0.00010124,2]
[352246901,1739016642896,-1435.33,0.00010124,2]
[352246903,1739016642906,-678.63,0.00010124,2]
[352246905,1739016642915,-580.73,0.00010124,2]
[352246907,1739016642924,-619.8,0.00010124,2]
[352246909,1739016642933,-500.0,0.00010124,2]
[352246911,1739016642942,-1735.93,0.00010124,2]
[352246913,1739016642952,-617.19,0.00010124,2]
[352246914,1739016642963,-1402.8,0.00010124,2]
[352246916,1739016642972,-500.0,0.00010124,2]
[352246919,1739016642982,-1356.77,0.00010124,2]
[352246922,1739016642991,-552.02,0.00010124,2]
[352246925,1739016643001,-639.24,0.00010124,2]
[352246928,1739016643011,-500.0,0.00010124,2]
[352246930,1739016643020,-1090.42,0.00010124,2]
[352246933,1739016643030,-500.0,0.00010124,2]
[352246935,1739016643039,-500.0,0.00010124,2]
[352246937,1739016643048,-520.86,0.00010124,2]
[352246939,1739016643057,-543.67,0.00010124,2]
[352246941,1739016643067,-683.58,0.00010124,2]
[352246943,1739016643076,-763.82,0.00010124,2]
[352246946,1739016643085,-500.0,0.00010124,2]
[352246948,1739016643095,-500.0,0.00010124,2]
[352246950,1739016643105,-410.49,0.00010137,2]
[352246952,1739016643114,-178.76126204,0.00010199,2]
[352246954,1739016643124,-3646167.63882946,0.000102,2]
[352246956,1739016643133,-250.0,0.0001025,2]
[352246958,1739016643143,-158.366121,0.00010259,2]
[352246960,1739016643152,-500.0,0.00010259,2]
[352246962,1739016643162,-2684.42,0.00010259,2]
[352246964,1739016643171,-933.62,0.00010259,2]
[352246966,1739016643181,-1024.41,0.00010259,2]
[352246968,1739016643190,-2006.719722,0.00010259,2]
[352246970,1739016643199,-1000.88,0.00010259,2]
[352246972,1739016643209,-1598.6,0.00010259,2]
[352246974,1739016643219,-14404.81,0.00010259,2]
[352246976,1739016643228,-1873.95,0.00010259,2]
[352246978,1739016643237,-887.37,0.00010259,2]
[352246980,1739016643247,-1877.57,0.00010259,2]
[352246982,1739016643255,-500.0,0.00010259,2]
[352246984,1739016643265,-680.39,0.00010259,2]
[352246986,1739016643275,-2425.45,0.00010259,2]
[352246988,1739016643285,-1162.12,0.00010259,2]
[352246990,1739016643294,-500.0,0.00010259,2]
[352246992,1739016643303,-1515.42,0.00010259,2]
[352246994,1739016643313,-909.64,0.00010259,2]
[352246996,1739016643322,-2929.65,0.00010259,2]
[352246998,1739016643331,-1376.49,0.00010259,2]
[352247000,1739016643340,-1924.921431,0.00010259,2]
[352247002,1739016643350,-8797.64,0.00010259,2]
[352247004,1739016643359,-514.57,0.00010259,2]
[352247006,1739016643368,-500.0,0.00010259,2]
[352247008,1739016643377,-660.5,0.00010259,2]
[352247010,1739016643386,-1132.41,0.00010259,2]
[352247012,1739016643396,-1210.74,0.00010259,2]
[352247014,1739016643405,-2167.29,0.00010259,2]
[352247016,1739016643414,-997.08,0.00010259,2]
[352247018,1739016643423,-1956.24,0.00010259,2]
[352247020,1739016643432,-889.21,0.00010259,2]
[352247022,1739016643441,-1483.87,0.00010259,2]
[352247024,1739016643450,-1523.46,0.00010259,2]
[352247026,1739016643460,-1005.33,0.00010259,2]
[352247028,1739016643470,-500.0,0.00010259,2]
[352247030,1739016643479,-2972.62,0.00010259,2]
[352247032,1739016643491,-3014.46,0.00010259,2]
[352247034,1739016643500,-1879.88,0.00010259,2]
[352247036,1739016643509,-1805.48,0.00010259,2]
[352247038,1739016643518,-1675.03,0.00010259,2]
[352247040,1739016643527,-1525.04,0.00010259,2]
[352247042,1739016643537,-1481.76,0.00010259,2]
[352247044,1739016643546,-1550.41,0.00010259,2]
[352247046,1739016643556,-500.0,0.00010259,2]
[352247048,1739016643565,-1336.26,0.00010259,2]
[352247050,1739016643574,-1170.33,0.00010259,2]
[352247052,1739016643584,-6263.57,0.00010259,2]
[352247054,1739016643593,-722.46,0.00010259,2]
[352247056,1739016643602,-1279.94,0.00010259,2]
[352247058,1739016643611,-2548.9,0.00010259,2]
[352247060,1739016643620,-1763.51,0.00010259,2]
[352247062,1739016643630,-3187.35,0.00010259,2]
[352247064,1739016643641,-2428.97,0.00010259,2]
[352247066,1739016643653,-1433.03,0.00010259,2]
[352247068,1739016643663,-2509.09,0.00010259,2]
[352247076,1739016643732,-500.0,0.00010259,2]
[352247078,1739016643741,-1983.83,0.00010259,2]
[352247080,1739016643750,-1130.52,0.00010259,2]
[352247082,1739016643759,-938.92,0.00010259,2]
[352247083,1739016643767,-2847.66,0.00010259,2]
[352247085,1739016643776,-848.72,0.00010259,2]
[352247087,1739016643785,-981.5,0.00010259,2]
[352247089,1739016643795,-4198.29,0.00010259,2]
[352247091,1739016643804,-2236.4,0.00010259,2]
[352247093,1739016643813,-591.38,0.00010259,2]
[352247095,1739016643823,-500.0,0.00010259,2]
[352247097,1739016643832,-2177.48,0.00010259,2]
[352247099,1739016643841,-789.78,0.00010259,2]
[352247101,1739016643851,-2846.29,0.00010259,2]
[352247103,1739016643860,-2497.72,0.00010259,2]
[352247105,1739016643870,-3935.72,0.00010259,2]
[352247107,1739016643879,-1045.52,0.00010259,2]
[352247109,1739016643890,-2921.31,0.00010259,2]
[352247111,1739016643901,-1177.12,0.00010259,2]
[352247114,1739016643911,-685.44,0.00010259,2]
[352247116,1739016643920,-2601.32,0.00010259,2]
[352247118,1739016643929,-2586.35,0.00010259,2]
[352247120,1739016643939,-2525.4,0.00010259,2]
[352247122,1739016643948,-574.27,0.00010259,2]
[352247124,1739016643957,-1201.45,0.00010259,2]
[352247125,1739016643967,-500.0,0.00010259,2]
[352247127,1739016643976,-758.46,0.00010259,2]
[352247129,1739016643985,-694.71,0.00010259,2]
[352247131,1739016643995,-2455.19,0.00010259,2]
[352247133,1739016644004,-2656.07,0.00010259,2]
[352247135,1739016644013,-3064.19,0.00010259,2]
[352247137,1739016644022,-972.81,0.00010259,2]
[352247139,1739016644031,-500.0,0.00010259,2]
[352247141,1739016644040,-500.0,0.0001026,2]
[352247143,1739016644049,-495.95222096,0.0001026,2]
[352247145,1739016644057,-500.0,0.0001026,2]
[352247147,1739016644066,-500.0,0.0001026,2]
[352247149,1739016644075,-500.0,0.0001026,2]
[352247151,1739016644084,-500.0,0.0001026,2]
[352247153,1739016644093,-500.0,0.0001026,2]
[352247155,1739016644103,-500.0,0.0001026,2]
[352247157,1739016644112,-500.0,0.0001026,2]
[352247159,1739016644121,-500.0,0.0001026,2]
[352247161,1739016644130,-500.0,0.0001026,2]
[352247163,1739016644139,-500.0,0.0001026,2]
[352247165,1739016644148,-500.0,0.0001026,2]
[352247167,1739016644158,-500.0,0.0001026,2]
[352247169,1739016644167,-500.0,0.0001026,2]
[352247171,1739016644176,-500.0,0.0001026,2]
[352247173,1739016644186,-500.0,0.0001026,2]
[352247175,1739016644195,-591.73,0.0001026,2]
[352247177,1739016644204,-500.0,0.0001026,2]
[352247179,1739016644213,-624.99065089,0.0001026,2]
[352247181,1739016644223,-500.0,0.0001026,2]
[352247183,1739016644232,-500.0,0.0001026,2]
[352247185,1739016644242,-504.14580539,0.0001026,2]
[352247187,1739016644251,-500.0,0.0001026,2]
[352247189,1739016644260,-690.29,0.0001026,2]
[352247191,1739016644269,-500.0,0.0001026,2]
[352247193,1739016644279,-500.0,0.0001026,2]
[352247195,1739016644288,-500.0,0.0001026,2]
[352247197,1739016644297,-538.0,0.0001026,2]
[352247199,1739016644306,-500.0,0.0001026,2]
[352247201,1739016644315,-502.21259288,0.0001026,2]
[352247203,1739016644324,-500.0,0.0001026,2]
[352247205,1739016644334,-500.0,0.0001026,2]
[352247207,1739016644343,-510.82005775,0.0001026,2]
[352247209,1739016644352,-500.0,0.0001026,2]
[352247211,1739016644361,-774.67,0.0001026,2]
[352247213,1739016644370,-500.0,0.0001026,2]
[352247215,1739016644380,-500.0,0.0001026,2]
[352247217,1739016644390,-500.0,0.0001026,2]
[352247219,1739016644400,-500.0,0.0001026,2]
[352247221,1739016644409,-500.0,0.0001026,2]
[352247223,1739016644418,-500.0,0.0001026,2]
[352247225,1739016644427,-500.0,0.0001026,2]
[352247227,1739016644436,-500.0,0.0001026,2]
[352247229,1739016644445,-500.0,0.0001026,2]
[352247231,1739016644454,-500.0,0.0001026,2]
[352247233,1739016644464,-500.0,0.0001026,2]
[352247235,1739016644473,-500.0,0.0001026,2]
[352247237,1739016644483,-1124.54,0.0001026,2]
[352247239,1739016644492,-520.35670548,0.0001026,2]
[352247241,1739016644501,-500.0,0.0001026,2]
[352247243,1739016644511,-209.13236941,0.0001026,2]
[352247245,1739016644522,-500.0,0.0001026,2]
[352247247,1739016644531,-500.0,0.0001026,2]
[352247249,1739016644540,-578.02,0.0001026,2]
[352247251,1739016644549,-504.58121987,0.0001026,2]
[352247253,1739016644558,-500.0,0.0001026,2]
[352247255,1739016644567,-500.0,0.0001026,2]
[352247257,1739016644576,-500.0,0.0001026,2]
[352247259,1739016644586,-500.0,0.0001026,2]
[352247261,1739016644595,-500.0,0.0001026,2]
[352247263,1739016644604,-731.4,0.0001026,2]
[352247265,1739016644613,-1169.39,0.0001026,2]
[352247267,1739016644623,-500.0,0.0001026,2]
[352247269,1739016644632,-500.0,0.0001026,2]
[352247271,1739016644645,-582.22,0.0001026,2]
[352247273,1739016644654,-500.0,0.0001026,2]
[352247275,1739016644664,-739.49,0.0001026,2]
[352247277,1739016644673,-500.0,0.0001026,2]
[352247279,1739016644684,-500.0,0.0001026,2]
[352247281,1739016644693,-571.75428362,0.0001026,2]
[352247283,1739016644702,-904.49,0.0001026,2]
[352247285,1739016644712,-500.0,0.0001026,2]
[352247287,1739016644722,-500.0,0.0001026,2]
[352247289,1739016644732,-505.05649173,0.0001026,2]
[352247291,1739016644742,-500.0,0.0001026,2]
[352247293,1739016644751,-1674.01,0.0001026,2]
[352247295,1739016644760,-500.0,0.0001026,2]
[352247297,1739016644770,-825.85,0.0001026,2]
[352247299,1739016644779,-500.0,0.0001026,2]
[352247301,1739016644788,-500.0,0.0001026,2]
[352247303,1739016644799,-643.57167537,0.0001026,2]
[352247305,1739016644809,-500.0,0.0001026,2]
[352247307,1739016644818,-500.0,0.0001026,2]
[352247309,1739016644827,-500.0,0.0001026,2]
[352247311,1739016644836,-500.0,0.0001026,2]
[352247313,1739016644845,-500.0,0.0001026,2]
[352247315,1739016644855,-1609.57,0.0001026,2]
[352247317,1739016644864,-507.8598162,0.0001026,2]
[352247319,1739016644874,-531.32,0.0001026,2]
[352247321,1739016644883,-500.0,0.0001026,2]
[352247323,1739016644892,-500.0,0.0001026,2]
[352247325,1739016644901,-755.09,0.0001026,2]
[352247327,1739016644910,-500.0,0.0001026,2]
[352247329,1739016644919,-500.0,0.0001026,2]
[352247331,1739016644929,-755.03,0.0001026,2]
[352247333,1739016644938,-500.0,0.0001026,2]
[352247335,1739016644948,-500.0,0.0001026,2]
[352247337,1739016644957,-573.72,0.0001026,2]
[352247339,1739016644966,-1197.56,0.0001026,2]
[352247341,1739016644975,-500.0,0.0001026,2]
[352247343,1739016644984,-505.85708612,0.0001026,2]
[352247345,1739016644994,-500.0,0.0001026,2]
[352247347,1739016645005,-207.38909573,0.0001026,2]
[352247349,1739016645014,-500.0,0.0001026,2]
[352247351,1739016645023,-500.0,0.0001026,2]
[352247353,1739016645032,-500.0,0.0001026,2]
[352247354,1739016645041,-500.0,0.0001026,2]
[352247355,1739016645051,-354.59458522,0.0001026,2]
[352247356,1739016645060,-507.55945293,0.0001026,2]
[352247357,1739016645071,-771.54,0.0001026,2]
[352247358,1739016645080,-505.87942166,0.0001026,2]
[352247359,1739016645090,-558.54,0.0001026,2]
[352247360,1739016645099,-500.0,0.0001026,2]
[352247361,1739016645108,-500.0,0.0001026,2]
[352247362,1739016645118,-500.0,0.0001026,2]
[352247363,1739016645128,-500.0,0.0001026,2]
[352247364,1739016645137,-525.06,0.0001026,2]
[352247365,1739016645146,-500.0,0.0001026,2]
[352247366,1739016645155,-520.49,0.0001026,2]
[352247368,1739016645164,-500.0,0.0001026,2]
[352247369,1739016645174,-509.49,0.0001026,2]
[352247371,1739016645182,-500.0,0.0001026,2]
[352247373,1739016645192,-500.0,0.0001026,2]
[352247375,1739016645200,-297.14734374,0.0001026,2]
[352247377,1739016645210,-1295.12,0.0001026,2]
[352247379,1739016645220,-394.84002562,0.0001026,2]
[352247381,1739016645230,-500.0,0.0001026,2]
[352247383,1739016645239,-269.81991644,0.0001026,2]
[352247385,1739016645250,-500.0,0.0001026,2]
[352247387,1739016645260,-500.0,0.0001026,2]
[352247389,1739016645269,-558.23,0.0001026,2]
[352247391,1739016645279,-603.54,0.0001026,2]
[352247393,1739016645288,-500.0,0.0001026,2]
[352247395,1739016645298,-500.0,0.0001026,2]
[352247397,1739016645308,-500.0,0.0001026,2]
[352247400,1739016645318,-500.0,0.0001026,2]
[352247402,1739016645328,-500.0,0.0001026,2]
[352247405,1739016645338,-433.79,0.0001026,2]
[352247406,1739016645347,-500.0,0.0001026,2]
[352247408,1739016645357,-500.0,0.0001026,2]
[352247410,1739016645368,-500.0,0.0001026,2]
[352247413,1739016645378,-500.0,0.0001026,2]
[352247415,1739016645387,-500.0,0.0001026,2]
[352247416,1739016645397,-500.0,0.0001026,2]
[352247418,1739016645406,-500.0,0.0001026,2]
[352247420,1739016645415,-530.55,0.0001026,2]
[352247422,1739016645425,-500.0,0.0001026,2]
[352247425,1739016645434,-500.0,0.0001026,2]
[352247426,1739016645444,-387.10709194,0.0001026,2]
[352247428,1739016645453,-1143.44,0.0001026,2]
[352247431,1739016645462,-500.0,0.0001026,2]
[352247432,1739016645472,-500.0,0.0001026,2]
[352247434,1739016645481,-500.0,0.0001026,2]
[352247436,1739016645490,-500.0,0.0001026,2]
[352247439,1739016645502,-500.0,0.0001026,2]
[352247441,1739016645511,-500.0,0.0001026,2]
[352247443,1739016645520,-553.63459463,0.0001026,2]
[352247445,1739016645530,-1033.59,0.0001026,2]
[352247447,1739016645539,-500.0,0.0001026,2]
[352247449,1739016645548,-500.0,0.0001026,2]
[352247450,1739016645557,-500.0,0.0001026,2]
[352247453,1739016645566,-500.0,0.0001026,2]
[352247454,1739016645575,-500.0,0.0001026,2]
[352247456,1739016645584,-1257.01,0.0001026,2]
[352247458,1739016645594,-876.98,0.0001026,2]
[352247460,1739016645603,-500.0,0.0001026,2]
[352247463,1739016645613,-501.05,0.0001026,2]
[352247465,1739016645622,-500.0,0.0001026,2]
[352247466,1739016645631,-500.0,0.0001026,2]
[352247468,1739016645644,-500.0,0.0001026,2]
[352247470,1739016645653,-530.26,0.0001026,2]
[352247472,1739016645662,-500.0,0.0001026,2]
[352247474,1739016645671,-500.0,0.0001026,2]
[352247476,1739016645681,-500.0,0.0001026,2]
[352247478,1739016645690,-500.0,0.0001026,2]
[352247480,1739016645699,-500.0,0.0001026,2]
[352247482,1739016645708,-1651.88,0.0001026,2]
[352247484,1739016645719,-500.0,0.0001026,2]
[352247486,1739016645727,-1148.94,0.0001026,2]
[352247488,1739016645736,-500.0,0.0001026,2]
[352247490,1739016645746,-500.0,0.0001026,2]
[352247493,1739016645756,-575.47,0.0001026,2]
[352247494,1739016645765,-500.0,0.0001026,2]
[352247496,1739016645774,-500.0,0.0001026,2]
[352247498,1739016645783,-500.0,0.0001026,2]
[352247500,1739016645792,-500.0,0.0001026,2]
[352247502,1739016645801,-1025.22,0.0001026,2]
[352247504,1739016645811,-500.0,0.0001026,2]
[352247506,1739016645820,-915.76,0.0001026,2]
[352247508,1739016645829,-964.7,0.0001026,2]
[352247510,1739016645838,-500.0,0.0001026,2]
[352247512,1739016645848,-500.0,0.0001026,2]
[352247514,1739016645857,-698.32,0.0001026,2]
[352247516,1739016645866,-500.0,0.0001026,2]
[352247519,1739016645876,-500.0,0.0001026,2]
[352247520,1739016645886,-1390.15,0.0001026,2]
[352247522,1739016645895,-500.0,0.0001026,2]
[352247524,1739016645904,-161.37004603,0.0001026,2]
[352247526,1739016645914,-1649.62,0.0001026,2]
[352247528,1739016645923,-500.0,0.0001026,2]
[352247530,1739016645932,-500.0,0.0001026,2]
[352247532,1739016645942,-500.0,0.0001026,2]
[352247534,1739016645951,-500.0,0.0001026,2]
[352247536,1739016645960,-500.0,0.0001026,2]
[352247538,1739016645969,-500.0,0.0001026,2]
[352247540,1739016645978,-526.92,0.0001026,2]
[352247542,1739016645987,-592.25,0.0001026,2]
[352247545,1739016645996,-1935.59,0.0001026,2]
[352247546,1739016646006,-500.0,0.0001026,2]
[352247549,1739016646015,-910.81,0.0001026,2]
[352247550,1739016646024,-500.0,0.0001026,2]
[352247552,1739016646034,-650.96,0.0001026,2]
[352247555,1739016646044,-500.0,0.0001026,2]
[352247557,1739016646054,-500.0,0.0001026,2]
[352247559,1739016646063,-534.04,0.0001026,2]
[352247561,1739016646072,-500.0,0.0001026,2]
[352247562,1739016646081,-500.0,0.0001026,2]
[352247565,1739016646091,-1191.28,0.0001026,2]
[352247567,1739016646101,-500.0,0.0001026,2]
[352247569,1739016646111,-500.0,0.0001026,2]
[352247571,1739016646120,-544.7,0.0001026,2]
[352247573,1739016646130,-500.0,0.0001026,2]
[352247574,1739016646139,-500.0,0.0001026,2]
[352247576,1739016646148,-500.0,0.0001026,2]
[352247579,1739016646158,-500.0,0.0001026,2]
[352247580,1739016646168,-724.27,0.0001026,2]
[352247582,1739016646177,-500.0,0.0001026,2]
[352247585,1739016646187,-663.16,0.0001026,2]
[352247587,1739016646197,-500.0,0.0001026,2]
[352247589,1739016646206,-594.76,0.0001026,2]
[352247591,1739016646215,-500.0,0.0001026,2]
[352247593,1739016646225,-500.0,0.0001026,2]
[352247595,1739016646234,-500.0,0.0001026,2]
[352247597,1739016646244,-598.56173783,0.0001026,2]
[352247598,1739016646253,-500.0,0.0001026,2]
[352247600,1739016646263,-1403.23,0.0001026,2]
[352247603,1739016646273,-500.0,0.0001026,2]
[352247604,1739016646283,-500.0,0.0001026,2]
[352247606,1739016646292,-500.0,0.0001026,2]
[352247608,1739016646302,-985.78,0.0001026,2]
[352247610,1739016646312,-500.0,0.0001026,2]
[352247613,1739016646322,-938.03,0.0001026,2]
[352247614,1739016646331,-500.0,0.0001026,2]
[352247616,1739016646340,-692.14,0.0001026,2]
[352247618,1739016646349,-500.0,0.0001026,2]
[352247620,1739016646359,-500.0,0.0001026,2]